bitfinex/quotes_BTCUSD_20250308
["timestamp","ask_amount","ask_price","bid_price","bid_amount"]
[1741458638598,0.02271894,86325.0,86321.0,0.011584]
[1741458641095,0.02371894,86325.0,86321.0,0.011584]
[1741458642528,0.02371894,86325.0,86320.0,0.11484]
[1741458642873,0.011584,86321.0,86320.0,0.11484]
[1741458643080,0.011584,86322.0,86320.0,0.11484]
[1741458644031,0.196937,86322.0,86320.0,0.11484]
[1741458644646,0.011584,86322.0,86320.0,0.11484]
[1741458644847,0.196936,86322.0,86320.0,0.11484]
[1741458645270,0.03630294,86325.0,86320.0,0.11484]
[1741458645431,0.02471894,86325.0,86321.0,0.185354]
[1741458645634,0.02471894,86325.0,86323.0,0.18535]
[1741458645886,0.02471894,86325.0,86323.0,0.196934]
[1741458646263,0.02471894,86325.0,86324.0,0.011584]
[1741458646426,0.02271894,86325.0,86324.0,0.011584]
[1741458646795,0.02271894,86325.0,86324.0,0.010584]
[1741458647163,0.02271894,86325.0,86323.0,0.196934]
[1741458647794,0.02471894,86325.0,86323.0,0.196934]
[1741458648350,0.02271894,86325.0,86323.0,0.196934]
[1741458649394,0.0001699,86329.0,86328.0,0.011583]
[1741458649596,0.0001699,86329.0,86325.0,0.19693]
[1741458650596,0.0001699,86329.0,86326.0,0.01544058]
[1741458650801,0.0011699,86329.0,86326.0,0.01544058]
[1741458651011,0.0011699,86329.0,86326.0,0.01444058]
[1741458651183,0.0001699,86329.0,86326.0,0.01444058]
[1741458652489,0.0001699,86329.0,86326.0,0.02802358]
[1741458653383,0.00021467,86329.0,86326.0,0.02802358]
[1741458653606,0.00021467,86329.0,86327.0,0.185341]
[1741458653804,0.00021467,86329.0,86328.0,0.01533431]
[1741458654226,0.00021467,86329.0,86328.0,0.02691731]
[1741458654914,0.00021467,86329.0,86328.0,0.10971731]
[1741458655118,0.00021467,86329.0,86328.0,0.15491731]
[1741458655498,0.00021467,86329.0,86328.0,0.15691731]
[1741458656069,0.00021467,86329.0,86328.0,0.15807556]
[1741458656275,0.00021467,86329.0,86328.0,0.15691731]
[1741458657503,0.00021467,86329.0,86328.0,0.15791731]
[1741458660110,0.00013262,86329.0,86328.0,0.15791731]
[1741458666799,0.1970608,86342.0,86338.0,0.0822]
[1741458666800,0.0003398,86339.0,86338.0,0.0822]
[1741458667013,0.0003398,86339.0,86338.0,0.27421319]
[1741458668057,0.01777496,86339.0,86338.0,0.27421319]
[1741458668234,0.0003398,86339.0,86338.0,0.27421319]
[1741458669080,0.0003398,86339.0,86338.0,0.27721319]
[1741458669787,0.0003398,86339.0,86338.0,0.27421319]
[1741458669947,0.0003398,86339.0,86338.0,0.27721319]
[1741458670484,0.0013398,86339.0,86338.0,0.28421319]
[1741458670874,0.0003398,86339.0,86338.0,0.27721319]
[1741458671070,0.0013398,86339.0,86338.0,0.28421319]
[1741458671658,0.0003398,86339.0,86338.0,0.27721319]
[1741458672261,0.0003398,86339.0,86338.0,0.27421319]
[1741458672663,0.0003398,86339.0,86338.0,0.27721319]
[1741458672870,0.0003398,86339.0,86338.0,0.27421319]
[1741458673090,0.0013398,86339.0,86338.0,0.28121319]
[1741458673294,0.0013398,86339.0,86338.0,0.28421319]
[1741458677283,0.0003398,86339.0,86338.0,0.27721319]
[1741458677804,0.0013398,86339.0,86338.0,0.28321319]
[1741458678519,0.0013398,86339.0,86338.0,0.28021319]
[1741458679091,0.0013398,86339.0,86338.0,0.28321319]
[1741458683209,0.0003398,86339.0,86338.0,0.27721319]
[1741458683405,0.0003398,86339.0,86338.0,0.27421319]
[1741458683612,0.0013398,86339.0,86338.0,0.28021319]
[1741458684010,0.0013398,86339.0,86338.0,0.28321319]
[1741458692469,0.0013398,86339.0,86338.0,0.28355279]
[1741458697539,0.0013398,86339.0,86338.0,0.16879279]
[1741458697745,0.0013398,86339.0,86338.0,0.23353279]
[1741458698372,0.0003398,86339.0,86338.0,0.22453279]
[1741458698752,0.0013398,86339.0,86338.0,0.23353279]
[1741458699138,0.0013398,86339.0,86338.0,0.23053279]
[1741458699327,0.0003398,86339.0,86338.0,0.22453279]
[1741458699552,0.0003398,86339.0,86338.0,0.22753279]
[1741458699730,0.0013398,86339.0,86338.0,0.23353279]
[1741458701387,0.0003398,86339.0,86338.0,0.22753279]
[1741458701775,0.0013398,86339.0,86338.0,0.23353279]
[1741458702841,0.0013398,86339.0,86338.0,0.23053279]
[1741458703046,0.0013398,86339.0,86338.0,0.23353279]
[1741458707607,0.15745504,86350.0,86338.0,0.22195079]
[1741458707808,0.15754012,86350.0,86349.0,0.196874]
[1741458707987,8.508e-05,86350.0,86349.0,0.32765912]
[1741458708188,8.508e-05,86350.0,86349.0,0.14236512]
[1741458709658,8.508e-05,86350.0,86349.0,0.14436512]
[1741458710247,0.01624607,86350.0,86349.0,0.14436512]
[1741458714889,0.01624607,86350.0,86349.0,0.14236512]
[1741458715087,0.20153807,86350.0,86349.0,0.13178512]
[1741458715291,0.21311807,86350.0,86349.0,0.13178512]
[1741458715998,0.21311807,86350.0,86349.0,0.13078512]
[1741458716200,0.21311807,86350.0,86349.0,0.13178512]
[1741458716583,0.21411807,86350.0,86349.0,0.13178512]
[1741458717118,0.21311807,86350.0,86349.0,0.13178512]
[1741458717714,0.21411807,86350.0,86349.0,0.13078512]
[1741458718081,0.21411807,86350.0,86349.0,0.13178512]
[1741458719602,0.00108508,86350.0,86349.0,0.14236512]
[1741458719984,8.508e-05,86350.0,86349.0,0.14236512]
[1741458720179,0.0235951,86350.0,86349.0,0.14236512]
[1741458720407,0.0255951,86350.0,86349.0,0.14236512]
[1741458720616,0.04208117,86350.0,86349.0,0.13078512]
[1741458720815,0.04008117,86350.0,86349.0,0.14236512]
[1741458721190,0.04108117,86350.0,86349.0,0.14236512]
[1741458722610,0.04108117,86350.0,86349.0,0.14336512]
[1741458722825,0.04108117,86350.0,86349.0,0.13178512]
[1741458723000,0.04008117,86350.0,86349.0,0.13178512]
[1741458723200,0.05166117,86350.0,86349.0,0.13178512]
[1741458723381,0.05266117,86350.0,86349.0,0.11564]
[1741458723589,0.05266117,86350.0,86349.0,0.13177989]
[1741458724217,0.05166117,86350.0,86349.0,0.13177989]
[1741458724410,0.04008117,86350.0,86349.0,0.13177989]
[1741458724739,0.04008117,86350.0,86349.0,0.13077989]
[1741458724975,0.04008117,86350.0,86349.0,0.13177989]
[1741458726466,0.04108117,86350.0,86349.0,0.13177989]
[1741458726882,0.05266117,86350.0,86349.0,0.13177989]
[1741458729753,0.05266117,86350.0,86349.0,0.13211949]
[1741458730747,0.05266117,86350.0,86349.0,0.01747949]
[1741458730952,0.05266117,86350.0,86349.0,0.0013396]
[1741458731556,0.05266117,86350.0,86349.0,0.0003396]
[1741458732034,0.05366117,86350.0,86349.0,0.0003396]
[1741458732458,0.05266117,86350.0,86349.0,0.0003396]
[1741458733473,0.58478417,86350.0,86349.0,0.0003396]
[1741458733688,0.539798,86339.0,86338.0,0.0003396]
[1741458733893,1.28336,86339.0,86338.0,0.0003396]
[1741458734271,1.406158,86339.0,86338.0,0.0003396]
[1741458734658,1.06796,86339.0,86338.0,0.0003396]
[1741458734884,0.991958,86339.0,86338.0,0.0033396]
[1741458735229,0.993958,86339.0,86338.0,0.0003396]
[1741458735421,0.876077,86339.0,86338.0,0.0003396]
[1741458735646,0.877077,86339.0,86338.0,0.0003396]
[1741458736727,0.89161785,86339.0,86338.0,0.0003396]
[1741458737019,0.88577521,86339.0,86338.0,0.0003396]
[1741458737621,0.71445621,86339.0,86338.0,0.0003396]
[1741458737827,0.95116021,86339.0,86338.0,0.0003396]
[1741458737984,0.94916021,86339.0,86338.0,0.0003396]
[1741458738183,0.91026021,86339.0,86338.0,0.0003396]
[1741458738394,0.91526021,86339.0,86338.0,0.0003396]
[1741458738596,2.09053521,86339.0,86338.0,0.0003396]
[1741458741602,1.73609621,86339.0,86338.0,0.0003396]
[1741458741781,1.2305,86339.0,86338.0,0.0785396]
[1741458742010,0.009,86339.0,86338.0,0.0785396]
[1741458742219,0.009,86339.0,86338.0,0.0901216]
[1741458742425,0.009,86339.0,86338.0,0.10515443]
[1741458742835,0.311581,86345.0,86340.0,0.011582]
[1741458742986,0.196891,86342.0,86338.0,0.09357243]
[1741458743155,0.196891,86342.0,86338.0,0.0785396]
[1741458743156,0.003,86339.0,86338.0,0.0785396]
[1741458743366,0.014582,86339.0,86338.0,0.0785396]
[1741458743825,0.003,86339.0,86338.0,0.0785396]
[1741458744039,0.011581,86341.0,86338.0,0.0785396]
[1741458744339,0.002,86339.0,86338.0,0.0785396]
[1741458744696,0.011581,86341.0,86338.0,0.0785396]
[1741458744910,0.011581,86341.0,86338.0,0.0805396]
[1741458745693,0.011581,86341.0,86338.0,0.0785396]
[1741458745996,0.196886,86344.0,86338.0,0.2764386]
[1741458746435,0.15745504,86348.0,86345.0,0.196882]
[1741458746658,0.196863,86354.0,86346.0,0.0782]
[1741458746659,0.05166117,86350.0,86346.0,0.0782]
[1741458746854,0.196877,86348.0,86346.0,0.0782]
[1741458747091,0.011581,86347.0,86346.0,0.0782]
[1741458747286,0.011581,86347.0,86346.0,0.0762]
[1741458748418,0.012581,86347.0,86346.0,0.0762]
[1741458748753,0.011581,86347.0,86346.0,0.19072]
[1741458749322,0.012581,86347.0,86346.0,0.19072]
[1741458750619,0.15019106,86350.0,86346.0,0.19072]
[1741458750821,0.011581,86347.0,86346.0,0.19072]
[1741458751941,0.196891,86342.0,86339.0,0.0782]
[1741458752203,0.03530731,86347.0,86340.0,0.11452]
[1741458752449,0.02372631,86347.0,86341.0,0.185311]
[1741458752623,0.011581,86346.0,86340.0,0.11452]
[1741458752761,0.011581,86345.0,86340.0,0.11452]
[1741458753161,0.011581,86345.0,86339.0,0.089782]
[1741458753400,0.011581,86345.0,86340.0,0.11452]
[1741458754402,0.012581,86345.0,86340.0,0.11452]
[1741458755141,0.012581,86345.0,86340.0,0.1148596]
[1741458755299,0.012581,86345.0,86341.0,0.01498704]
[1741458756143,0.02372631,86347.0,86341.0,0.01498704]
[1741458756329,0.02372631,86347.0,86343.0,0.011581]
[1741458756700,0.02372631,86347.0,86344.0,0.01498214]
[1741458756906,0.03530731,86347.0,86342.0,0.19689]
[1741458757295,0.001,86345.0,86340.0,0.1148596]
[1741458757487,0.196882,86346.0,86340.0,0.1148596]
[1741458759100,0.185305,86344.0,86340.0,0.1148596]
[1741458759297,0.18531,86342.0,86340.0,0.1148596]
[1741458759503,0.011581,86341.0,86340.0,0.1148596]
[1741458759643,0.011581,86341.0,86340.0,0.0003396]
[1741458759859,0.011581,86341.0,86340.0,0.1148196]
[1741458760704,0.011581,86341.0,86340.0,0.0003396]
[1741458760936,0.011581,86341.0,86340.0,0.0013396]
[1741458761432,0.011581,86341.0,86340.0,0.0003396]
[1741458761664,0.011581,86341.0,86340.0,0.0023396]
[1741458762077,0.011581,86341.0,86340.0,0.0003396]
[1741458762277,0.185305,86344.0,86340.0,0.0003396]
[1741458762553,0.02372631,86347.0,86346.0,0.1853]
[1741458762735,0.02372631,86347.0,86344.0,0.185305]
[1741458762934,0.02372631,86347.0,86343.0,0.094181]
[1741458763137,0.22060731,86347.0,86343.0,0.0826]
[1741458763607,0.011581,86346.0,86343.0,0.0826]
[1741458764026,0.001,86344.0,86343.0,0.0826]
[1741458764589,0.011581,86346.0,86343.0,0.0826]
[1741458764795,0.012581,86346.0,86343.0,0.0826]
[1741458765172,0.012581,86346.0,86343.0,0.0816]
[1741458765774,0.001,86344.0,86343.0,0.0816]
[1741458766154,0.011581,86346.0,86343.0,0.0816]
[1741458766958,0.196884,86345.0,86343.0,0.0816]
[1741458767485,0.001,86344.0,86343.0,0.0816]
[1741458767841,0.196884,86345.0,86343.0,0.0816]
[1741458768244,0.197884,86345.0,86343.0,0.0816]
[1741458768583,0.197884,86345.0,86343.0,0.0819396]
[1741458769393,0.199884,86345.0,86343.0,0.0819396]
[1741458770471,0.199884,86345.0,86344.0,0.01531795]
[1741458771431,0.198884,86345.0,86344.0,0.01531795]
[1741458771682,0.199884,86345.0,86344.0,0.01531795]
[1741458771903,0.197884,86345.0,86344.0,0.01531795]
[1741458772135,0.199884,86345.0,86344.0,0.01531795]
[1741458781521,0.011581,86344.0,86343.0,0.0003396]
[1741458783053,0.012581,86344.0,86343.0,0.0003396]
[1741458783223,0.014581,86344.0,86343.0,0.0003396]
[1741458783424,0.012581,86344.0,86343.0,0.0003396]
[1741458783801,0.011581,86344.0,86343.0,0.0003396]
[1741458784028,0.011581,86344.0,86343.0,0.0023396]
[1741458784526,0.011581,86344.0,86343.0,0.0033396]
[1741458795876,0.011581,86344.0,86343.0,0.01693976]
[1741458796082,0.011581,86344.0,86343.0,0.0003396]
[1741458796303,0.011581,86344.0,86343.0,0.01593976]
[1741458796474,0.011581,86344.0,86343.0,0.0003396]
[1741458796916,0.011581,86344.0,86343.0,0.0013396]
[1741458797491,0.011581,86344.0,86343.0,0.0003396]
[1741458797689,0.011581,86344.0,86343.0,0.0013396]
[1741458801174,0.011581,86344.0,86332.0,0.011583]
[1741458801175,0.19692,86329.0,86325.0,0.0829]
[1741458801373,0.19692,86329.0,86327.0,0.11436]
[1741458801613,0.19692,86329.0,86328.0,0.01596392]
[1741458802149,0.185334,86331.0,86328.0,0.01596392]
[1741458802354,0.196917,86331.0,86328.0,0.01596392]
[1741458803776,0.001,86329.0,86328.0,0.02196392]
[1741458804178,0.001,86329.0,86328.0,0.02496392]
[1741458805190,0.001,86329.0,86328.0,0.02196392]
[1741458805420,0.196917,86331.0,86328.0,0.01596392]
[1741458805637,0.196917,86331.0,86328.0,0.01996392]
[1741458806242,0.196917,86331.0,86328.0,0.01596392]
[1741458806387,0.001,86329.0,86328.0,0.01996392]
[1741458807003,0.196917,86331.0,86328.0,0.01596392]
[1741458807203,0.196917,86331.0,86328.0,0.02396392]
[1741458807815,0.011583,86333.0,86328.0,0.20930192]
[1741458808033,0.3,86335.0,86329.0,0.0784]
[1741458808250,0.3,86336.0,86331.0,0.011583]
[1741458808431,0.311582,86336.0,86331.0,0.011583]
[1741458808637,0.311582,86336.0,86332.0,0.01561778]
[1741458809116,0.196906,86335.0,86332.0,0.01561778]
[1741458809357,0.011583,86331.0,86330.0,0.0456]
[1741458810632,0.02316196,86334.0,86330.0,0.0456]
[1741458810837,0.03474396,86334.0,86330.0,0.0456]
[1741458811617,0.011583,86333.0,86330.0,0.0466]
[1741458811973,0.196912,86333.0,86330.0,0.0456]
[1741458815015,0.197912,86333.0,86330.0,0.0456]
[1741458815260,0.012583,86333.0,86330.0,0.0456]
[1741458815470,0.011583,86333.0,86330.0,0.0456]
[1741458815715,0.011583,86333.0,86331.0,0.01562893]
[1741458816015,0.196912,86333.0,86331.0,0.01562893]
[1741458817268,0.196912,86333.0,86331.0,0.01401381]
[1741458819338,0.02316196,86334.0,86331.0,0.01401381]
[1741458819510,0.011582,86338.0,86332.0,0.011583]
[1741458819913,0.011582,86338.0,86333.0,0.01567037]
[1741458820119,0.196902,86337.0,86333.0,0.01567037]
[1741458820466,0.185317,86339.0,86334.0,0.29548363]
[1741458820583,0.0117519,86340.0,86335.0,0.011582]
[1741458820788,0.196903,86337.0,86336.0,0.01567336]
[1741458820979,0.02296396,86337.0,86334.0,0.0829]
[1741458821298,0.02296396,86337.0,86335.0,0.01567499]
[1741458822135,0.21986696,86337.0,86335.0,0.01567499]
[1741458822552,0.22086696,86337.0,86334.0,0.0829]
[1741458822957,0.03554596,86337.0,86334.0,0.0829]
[1741458823401,0.03554596,86337.0,86335.0,0.01567499]
[1741458825012,0.02296396,86337.0,86336.0,0.011582]
[1741458825212,0.02396396,86337.0,86336.0,0.0829]
[1741458825388,0.02396396,86337.0,86336.0,0.11015536]
[1741458825389,0.001,86337.0,86336.0,0.11015536]
[1741458825752,0.00888774,86340.0,86336.0,0.11015536]
[1741458826732,0.0001699,86340.0,86336.0,0.11015536]
[1741458827145,0.0001699,86340.0,86336.0,0.10870176]
[1741458827340,0.001,86337.0,86336.0,0.10870176]
[1741458828212,0.001,86337.0,86336.0,0.09711976]
[1741458829436,0.196898,86339.0,86336.0,0.09711976]
[1741458830489,0.011582,86338.0,86336.0,0.09711976]
[1741458831053,0.196902,86337.0,86336.0,0.09711976]
[1741458831413,0.196902,86337.0,86336.0,0.09745956]
[1741458834401,0.197902,86337.0,86336.0,0.09745956]
[1741458835028,0.012582,86337.0,86336.0,0.09745956]
[1741458835232,0.011582,86337.0,86336.0,0.09745956]
[1741458836936,0.012582,86337.0,86336.0,0.09745956]
[1741458837581,0.011582,86337.0,86336.0,0.09745956]
[1741458837985,0.012582,86337.0,86336.0,0.01601316]
[1741458838187,0.011583,86333.0,86332.0,0.11428]
[1741458842051,0.012583,86333.0,86332.0,0.11428]
[1741458842795,0.011583,86333.0,86332.0,0.11428]
[1741458844182,0.001,86333.0,86332.0,0.11428]
[1741458844389,0.001,86333.0,86332.0,0.1146198]
[1741458844598,0.12451261,86336.0,86332.0,0.1146198]
[1741458844965,0.012583,86333.0,86332.0,0.1146198]
[1741458845594,0.012583,86333.0,86332.0,0.13028954]
[1741458847137,0.012583,86333.0,86332.0,0.11851532]
[1741458847320,0.001,86333.0,86332.0,0.11851532]
[1741458848546,0.196906,86335.0,86332.0,0.11851532]
[1741458848959,0.001,86333.0,86332.0,0.11851532]
[1741458849817,0.196906,86335.0,86332.0,0.11851532]
[1741458850177,0.196908,86337.0,86332.0,0.11851532]
[1741458850574,0.001,86335.0,86332.0,0.11851532]
[1741458852501,0.186324,86335.0,86332.0,0.11851532]
[1741458852707,0.185324,86335.0,86332.0,0.11851532]
[1741458852904,0.011582,86336.0,86333.0,0.1279]
[1741458853303,0.011582,86336.0,86334.0,0.01566699]
[1741458853936,0.001,86335.0,86334.0,0.01566699]
[1741458854137,0.011582,86336.0,86334.0,0.01566699]
[1741458854572,0.196906,86335.0,86334.0,0.01566699]
[1741458856402,0.197906,86335.0,86334.0,0.01566699]
[1741458856799,0.196906,86335.0,86334.0,0.01566699]
[1741458857671,0.0001699,86336.0,86334.0,0.01566699]
[1741458857871,0.0001699,86336.0,86335.0,0.0776]
[1741458858078,0.0001699,86336.0,86335.0,0.09326052]
[1741458858718,0.1854919,86336.0,86335.0,0.09326052]
[1741458858931,0.1970739,86336.0,86335.0,0.09326052]
[1741458859082,0.1970739,86336.0,86335.0,0.01566052]
[1741458859279,0.1970739,86336.0,86332.0,0.0003398]
[1741458859280,0.196911,86333.0,86332.0,0.0003398]
[1741458861973,0.011583,86331.0,86330.0,0.1743096]
[1741458862396,0.011583,86331.0,86330.0,0.18997548]
[1741458866248,0.011583,86331.0,86330.0,0.01566588]
[1741458866552,0.011583,86331.0,86328.0,0.0003396]
[1741458866553,0.011583,86329.0,86328.0,0.0003396]
[1741458866667,2.733587,86329.0,86328.0,0.0003396]
[1741458867236,2.331822,86329.0,86328.0,0.0003396]
[1741458867643,2.302753,86329.0,86328.0,0.0003396]
[1741458868144,2.303753,86329.0,86328.0,0.0003396]
[1741458868353,2.302753,86329.0,86328.0,0.0003396]
[1741458869808,1.973583,86329.0,86328.0,0.0003396]
[1741458869992,2.28016,86329.0,86328.0,0.0003396]
[1741458870423,2.28216,86329.0,86328.0,0.0003396]
[1741458871000,2.30297839,86329.0,86328.0,0.0003396]
[1741458871378,2.30497839,86329.0,86328.0,0.0003396]
[1741458872158,2.94747839,86329.0,86328.0,0.0003396]
[1741458872365,3.52647839,86329.0,86328.0,0.0003396]
[1741458874482,3.22804244,86329.0,86328.0,0.0003396]
[1741458874832,3.23962544,86329.0,86328.0,0.0003396]
[1741458876993,3.39012544,86329.0,86328.0,0.0003396]
[1741458877204,0.011584,86319.0,86318.0,6e-07]
[1741458877413,0.496942,86319.0,86318.0,6e-07]
[1741458877594,0.51148285,86319.0,86318.0,6e-07]
[1741458877831,0.51148285,86319.0,86317.0,1e-08]
[1741458877832,0.32612585,86318.0,86317.0,1e-08]
[1741458878045,1.55149085,86318.0,86317.0,1e-08]
[1741458878259,0.67812585,86318.0,86317.0,1e-08]
[1741458878717,0.197023,86284.0,86283.0,0.049]
[1741458878895,0.011589,86283.0,86282.0,0.0829]
[1741458879127,0.011589,86283.0,86282.0,0.09879601]
[1741458881515,0.011589,86283.0,86282.0,0.09913561]
[1741458881729,0.011589,86283.0,86282.0,0.01623561]
[1741458882201,0.011589,86283.0,86282.0,0.00042468]
[1741458882398,0.03479743,86283.0,86282.0,0.00042468]
[1741458882612,0.011589,86283.0,86282.0,0.00042468]
[1741458884533,0.311589,86283.0,86282.0,0.00042468]
[1741458884723,0.830589,86283.0,86282.0,0.00042468]
[1741458884928,0.85329232,86283.0,86282.0,0.00042468]
[1741458885374,0.85529232,86283.0,86282.0,0.00042468]
[1741458885684,0.85329232,86283.0,86282.0,0.00042468]
[1741458886122,0.85629232,86283.0,86282.0,0.00042468]
[1741458889657,1.37726032,86283.0,86282.0,0.00042468]
[1741458890116,1.37426032,86283.0,86282.0,0.00042468]
[1741458891783,1.24364732,86283.0,86282.0,0.00042468]
[1741458892528,1.24764732,86283.0,86282.0,0.00042468]
[1741458893230,1.26218817,86283.0,86282.0,0.00042468]
[1741458893644,0.011592,86260.0,86259.0,0.0819]
[1741458894073,0.011592,86260.0,86259.0,0.09487263]
[1741458894268,0.01109533,86260.0,86259.0,0.0819]
[1741458897196,0.197066,86265.0,86259.0,0.0819]
[1741458897197,0.011592,86264.0,86259.0,0.0819]
[1741458897397,0.011592,86261.0,86259.0,0.0819]
[1741458897597,0.011592,86261.0,86260.0,0.01297935]
[1741458898226,0.197077,86261.0,86260.0,0.01297935]
[1741458898419,0.22078591,86261.0,86260.0,0.01297935]
[1741458898679,0.011592,86260.0,86259.0,0.0819]
[1741458900287,0.03530091,86261.0,86259.0,0.09488099]
[1741458900676,0.311591,86268.0,86262.0,0.185481]
[1741458900876,0.311591,86268.0,86264.0,0.0776]
[1741458901078,0.34292204,86269.0,86267.0,0.011591]
[1741458901079,0.15745504,86269.0,86267.0,0.011591]
[1741458901277,0.2895,86275.0,86274.0,0.197045]
[1741458901497,0.3,86279.0,86275.0,0.08919]
[1741458901675,0.3,86279.0,86276.0,0.01296109]
[1741458902683,0.31159,86280.0,86276.0,0.01296109]
[1741458903785,0.20880405,86283.0,86280.0,0.0776]
[1741458904002,0.011589,86282.0,86280.0,0.0776]
[1741458904219,0.011589,86282.0,86281.0,0.01294557]
[1741458904753,0.24000519,86286.0,86281.0,0.20997457]
[1741458905166,0.24000519,86286.0,86281.0,0.01294557]
[1741458905368,0.001,86282.0,86281.0,0.01294557]
[1741458906119,0.001,86282.0,86281.0,0.06014557]
[1741458906291,0.001,86282.0,86281.0,0.07173557]
[1741458906661,0.001,86282.0,86281.0,0.06014557]
[1741458906864,0.001,86282.0,86281.0,0.07173557]
[1741458907360,0.001,86282.0,86281.0,0.06014557]
[1741458907574,0.012589,86282.0,86281.0,0.06014557]
[1741458907772,0.011589,86282.0,86281.0,0.06014557]
[1741458908579,0.011589,86282.0,86281.0,0.0472]
[1741458910123,0.011589,86282.0,86281.0,0.04538127]
[1741458910332,0.19703,86281.0,86280.0,0.0776]
[1741458910761,0.26243296,86286.0,86263.0,0.0807]
[1741458910762,0.197069,86264.0,86263.0,0.0807]
[1741458910966,0.197069,86264.0,86263.0,0.19486]
[1741458911195,0.197069,86264.0,86263.0,0.11416]
[1741458911437,0.197075,86261.0,86258.0,0.00038701]
[1741458912220,0.21988259,86261.0,86258.0,0.00038701]
[1741458913038,0.011592,86264.0,86259.0,0.011592]
[1741458913242,0.011592,86262.0,86258.0,0.04638701]
[1741458913450,0.197074,86262.0,86258.0,0.04638701]
[1741458913656,0.011592,86261.0,86258.0,0.04638701]
[1741458914035,0.02272828,86266.0,86258.0,0.04638701]
[1741458914036,0.011589,86282.0,86272.0,0.011591]
[1741458914258,0.3,86279.0,86272.0,0.011591]
[1741458914461,0.3,86279.0,86278.0,0.185447]
[1741458914638,0.322696,86279.0,86278.0,0.197037]
[1741458914841,0.3,86279.0,86278.0,0.197037]
[1741458915464,0.3,86279.0,86275.0,0.197042]
[1741458916059,0.31159,86279.0,86273.0,0.197048]
[1741458916472,0.3,86279.0,86276.0,0.01159]
[1741458917116,0.002,86279.0,86276.0,0.01159]
[1741458917314,0.002,86279.0,86277.0,0.01159]
[1741458917672,0.00217,86279.0,86277.0,0.01159]
[1741458917887,0.00217,86279.0,86278.0,0.01314825]
[1741458918284,0.00217,86279.0,86278.0,0.15063825]
[1741458918909,0.00017,86279.0,86278.0,0.15063825]
[1741458920072,0.00017,86279.0,86278.0,0.13904825]
[1741458920280,0.01176,86279.0,86278.0,0.1374114]
[1741458920659,0.011591,86273.0,86272.0,0.081]
[1741458920862,0.011591,86273.0,86272.0,0.19512]
[1741458921063,0.185457,86274.0,86272.0,0.2081029]
[1741458921480,0.197047,86274.0,86272.0,0.19512]
[1741458922125,0.01159,86276.0,86272.0,0.19512]
[1741458922760,0.01159,86276.0,86273.0,0.01298127]
[1741458923922,0.01159,86274.0,86273.0,0.01298127]
[1741458924267,0.197059,86268.0,86267.0,0.11412]
[1741458924478,0.197075,86261.0,86259.0,0.11412]
[1741458924676,0.197075,86261.0,86258.0,0.08138701]
[1741458924878,0.197075,86261.0,86260.0,0.01334589]
[1741458925081,0.197075,86261.0,86260.0,0.00034]
[1741458925237,0.197075,86261.0,86260.0,0.01334589]
[1741458925438,0.197075,86261.0,86260.0,0.00034]
[1741458925638,0.197075,86261.0,86260.0,0.01334589]
[1741458925869,0.197075,86261.0,86260.0,0.00034]
[1741458926066,0.197075,86261.0,86260.0,0.01334589]
[1741458926239,0.21526268,86261.0,86260.0,0.00034]
[1741458926421,0.21526268,86261.0,86260.0,0.02493789]
[1741458926422,0.01818768,86261.0,86260.0,0.02493789]
[1741458929799,0.01818768,86261.0,86260.0,0.01334589]
[1741458930163,0.01818768,86261.0,86260.0,0.01187272]
[1741458930534,0.01818768,86261.0,86258.0,0.27847001]
[1741458930731,0.01818768,86261.0,86260.0,0.01289974]
[1741458930935,0.01818768,86261.0,86259.0,0.01290138]
[1741458931134,0.01818768,86261.0,86260.0,0.01289974]
[1741458931601,0.01818768,86261.0,86258.0,0.09298001]
[1741458931815,0.01818768,86261.0,86260.0,0.01289974]
[1741458932011,0.01818768,86261.0,86258.0,0.09298001]
[1741458932012,0.01818768,86261.0,86259.0,0.01290138]
[1741458932235,0.01818768,86261.0,86260.0,0.01305827]
[1741458932638,0.01818768,86261.0,86258.0,0.08138701]
[1741458932838,0.01818768,86261.0,86260.0,0.01306026]
[1741458933037,0.01818768,86261.0,86259.0,0.01306148]
[1741458933236,0.01818768,86261.0,86260.0,0.01306026]
[1741458933662,0.01818768,86261.0,86258.0,0.08138701]
[1741458933816,0.01818768,86261.0,86260.0,0.01306026]
[1741458934034,0.01818768,86261.0,86259.0,0.01306148]
[1741458934233,0.01818768,86261.0,86260.0,0.01306026]
[1741458934433,0.02977968,86261.0,86260.0,0.01306026]
[1741458934636,0.02977968,86261.0,86258.0,0.08138701]
[1741458934835,0.01818768,86261.0,86260.0,0.01306026]
[1741458935357,0.01818768,86261.0,86258.0,0.08138701]
[1741458935561,0.01818768,86261.0,86260.0,0.01306026]
[1741458935762,0.01818768,86261.0,86258.0,0.08138701]
[1741458935961,0.01818768,86261.0,86260.0,0.01306026]
[1741458936143,0.01818768,86261.0,86258.0,0.08138701]
[1741458936341,0.01818768,86261.0,86260.0,0.01306026]
[1741458936524,0.01818768,86261.0,86258.0,0.08138701]
[1741458936732,0.01818768,86261.0,86259.0,0.01306148]
[1741458938724,0.20367168,86261.0,86259.0,0.01306148]
[1741458939081,0.01818768,86261.0,86259.0,0.01306148]
[1741458939914,0.20367168,86261.0,86259.0,0.01306148]
[1741458940118,0.01818768,86261.0,86259.0,0.01173563]
[1741458940318,0.01818768,86261.0,86260.0,0.011592]
[1741458940476,0.01818768,86261.0,86260.0,0.02455756]
[1741458941212,0.01818768,86261.0,86260.0,0.01262488]
[1741458941415,0.01818768,86261.0,86260.0,0.011592]
[1741458941616,0.01818768,86261.0,86260.0,0.02453322]
[1741458943546,0.13721612,86271.0,86261.0,0.011592]
[1741458943957,0.02368587,86268.0,86262.0,0.0129388]
[1741458944203,0.02368587,86268.0,86263.0,0.197071]
[1741458944416,0.02368587,86268.0,86263.0,0.21000858]
[1741458944559,0.02368587,86268.0,86263.0,0.01293758]
[1741458944759,0.03527687,86268.0,86261.0,0.197075]
[1741458945007,0.03527687,86268.0,86264.0,0.01293637]
[1741458945185,0.03527687,86268.0,86261.0,0.197075]
[1741458945381,0.03527687,86268.0,86265.0,0.01293515]
[1741458945586,0.03527687,86268.0,86261.0,0.197075]
[1741458945984,0.03527687,86268.0,86262.0,0.0129388]
[1741458946323,0.03627687,86268.0,86262.0,0.0245308]
[1741458947050,0.03627687,86268.0,86263.0,0.197071]
[1741458947260,0.02468587,86268.0,86263.0,0.197071]
[1741458947407,0.02468587,86268.0,86265.0,0.185474]